[Event "Titled Tuesday Blitz July 18 Early 2023"]
[White "Matinian, Nikita"]
[Black "Nunez V, Gustavo Eduardo"]
[WhiteFideId "24129100"]
[BlackFideId "4403690"]
[WhiteElo "2707"]
[BlackElo "2460"]
[Result "1-0"]
[Round "2"]
[TimeControl "180+2"]
[Date "2023.07.18"]
[WhiteClock "0:01:00"]
[BlackClock "0:00:05"]
[Board "79"]

1. e4 {[%clk 0:02:59]}  c5 {[%clk 0:02:59]} 2. Nf3 {[%clk 0:02:59]}  Nc6 {[%clk 0:02:58]} 3. Bb5 {[%clk 0:02:59]}  g6 {[%clk 0:02:57]} 4. O-O {[%clk 0:02:59]}  Bg7 {[%clk 0:02:57]} 5. d3 {[%clk 0:02:59]}  e5 {[%clk 0:02:56]} 6. a3 {[%clk 0:02:59]}  Nge7 {[%clk 0:02:54]} 7. b4 {[%clk 0:02:59]}  cxb4 {[%clk 0:02:50]} 8. axb4 {[%clk 0:03:00]}  Nxb4 {[%clk 0:02:50]} 9. Ba3 {[%clk 0:03:00]}  Nbc6 {[%clk 0:02:48]} 10. Bd6 {[%clk 0:03:00]}  O-O {[%clk 0:02:46]} 11. Nc3 {[%clk 0:02:58]}  a6 {[%clk 0:02:40]} 12. Bc4 {[%clk 0:02:57]}  h6 {[%clk 0:02:31]} 13. h4 {[%clk 0:02:53]}  Kh7 {[%clk 0:02:28]} 14. h5 {[%clk 0:02:37]}  g5 {[%clk 0:02:13]} 15. Nh2 {[%clk 0:02:30]}  f5 {[%clk 0:02:10]} 16. exf5 {[%clk 0:02:23]}  Rxf5 {[%clk 0:02:11]} 17. Ng4 {[%clk 0:02:14]}  Ng8 {[%clk 0:01:56]} 18. d4 {[%clk 0:02:05]}  Kh8 {[%clk 0:01:21]} 19. dxe5 {[%clk 0:01:52]}  Nxe5 {[%clk 0:00:41]} 20. Bxe5 {[%clk 0:01:32]}  Bxe5 {[%clk 0:00:39]} 21. Bd3 {[%clk 0:01:33]}  d6 {[%clk 0:00:35]} 22. Bxf5 {[%clk 0:01:29]}  Bxf5 {[%clk 0:00:36]} 23. Nxe5 {[%clk 0:01:30]}  dxe5 {[%clk 0:00:35]} 24. Qe2 {[%clk 0:01:20]}  Qc7 {[%clk 0:00:25]} 25. Nb5 {[%clk 0:01:16]}  Qc5 {[%clk 0:00:20]} 26. Rfe1 {[%clk 0:01:15]}  Re8 {[%clk 0:00:20]} 27. Na3 {[%clk 0:01:11]}  Nf6 {[%clk 0:00:19]} 28. Nc4 {[%clk 0:01:10]}  e4 {[%clk 0:00:16]} 29. Ra5 {[%clk 0:01:07]}  Qc8 {[%clk 0:00:15]} 30. Nd6 {[%clk 0:01:06]}  Qd8 {[%clk 0:00:10]} 31. Nf7+ {[%clk 0:01:03]}  Kg7 {[%clk 0:00:09]} 32. Nxd8 {[%clk 0:01:03]}  Bg4 {[%clk 0:00:09]} 33. Qd2 {[%clk 0:01:02]}  Bxh5 {[%clk 0:00:07]} 34. Nxb7 {[%clk 0:01:01]}  Bf7 {[%clk 0:00:07]} 35. Rxa6 {[%clk 0:01:01]}  Rb8 {[%clk 0:00:06]} 36. Rxf6 {[%clk 0:00:59]}  Rxb7 {[%clk 0:00:06]} 37. Qd4 {[%clk 0:00:59]}  Re7 {[%clk 0:00:06]} 38. Re6+ {[%clk 0:00:58]}  Kf8 {[%clk 0:00:05]} 39. Rxe7 {[%clk 0:00:57]}  Kxe7 {[%clk 0:00:06]} 40. Rxe4+ {[%clk 0:00:58]}  Kf8 {[%clk 0:00:06]} 41. Qf6 {[%clk 0:00:58]}  Kg8 {[%clk 0:00:05]} 42. Re7 {[%clk 0:00:59]}  h5 {[%clk 0:00:04]} 43. Qxf7+ {[%clk 0:00:59]}  Kh8 {[%clk 0:00:05]} 44. Qh7# {[%clk 0:01:00]} 1-0


[Site "https://www.chess.com"]

[Event "Titled Tuesday Blitz July 18 Early 2023"]
[White "Ai, Evan"]
[Black "Atakhan, Abtin"]
[WhiteFideId "2094770"]
[BlackFideId "22502203"]
[WhiteElo "2449"]
[BlackElo "2707"]
[Result "0-1"]
[Round "2"]
[TimeControl "180+2"]
[Date "2023.07.18"]
[WhiteClock "0:01:02"]
[BlackClock "0:00:54"]
[Board "80"]

1. d4 {[%clk 0:03:00]}  d5 {[%clk 0:03:00]} 2. c4 {[%clk 0:03:00]}  c6 {[%clk 0:03:00]} 3. cxd5 {[%clk 0:02:59]}  cxd5 {[%clk 0:03:01]} 4. Nc3 {[%clk 0:03:00]}  Nf6 {[%clk 0:03:02]} 5. Bf4 {[%clk 0:03:00]}  Nc6 {[%clk 0:03:03]} 6. e3 {[%clk 0:03:01]}  Bf5 {[%clk 0:03:04]} 7. Nf3 {[%clk 0:03:01]}  e6 {[%clk 0:03:04]} 8. Bd3 {[%clk 0:03:02]}  Bxd3 {[%clk 0:03:04]} 9. Qxd3 {[%clk 0:03:03]}  Be7 {[%clk 0:03:05]} 10. O-O {[%clk 0:03:03]}  O-O {[%clk 0:03:05]} 11. Rac1 {[%clk 0:03:03]}  Qb6 {[%clk 0:02:59]} 12. Na4 {[%clk 0:03:03]}  Qb4 {[%clk 0:02:57]} 13. b3 {[%clk 0:03:03]}  Ne4 {[%clk 0:02:54]} 14. Ne5 {[%clk 0:02:55]}  Nxe5 {[%clk 0:02:49]} 15. Bxe5 {[%clk 0:02:55]}  b5 {[%clk 0:02:44]} 16. Nc3 {[%clk 0:02:52]}  Nxc3 {[%clk 0:02:39]} 17. Qxc3 {[%clk 0:02:53]}  Qxc3 {[%clk 0:02:32]} 18. Rxc3 {[%clk 0:02:54]}  Ba3 {[%clk 0:02:31]} 19. b4 {[%clk 0:02:20]}  Bxb4 {[%clk 0:02:31]} 20. Rb3 {[%clk 0:02:20]}  a5 {[%clk 0:02:32]} 21. a3 {[%clk 0:02:20]}  Be7 {[%clk 0:02:32]} 22. Rxb5 {[%clk 0:02:16]}  Bxa3 {[%clk 0:02:17]} 23. Ra1 {[%clk 0:02:15]}  Bb4 {[%clk 0:02:14]} 24. Bc7 {[%clk 0:02:13]}  Rfc8 {[%clk 0:02:14]} 25. Bb6 {[%clk 0:01:56]}  Rab8 {[%clk 0:01:56]} 26. h4 {[%clk 0:01:43]}  h5 {[%clk 0:01:43]} 27. Rbxa5 {[%clk 0:01:29]}  Rxb6 {[%clk 0:01:36]} 28. Ra8 {[%clk 0:01:29]}  Rc6 {[%clk 0:01:32]} 29. Kh2 {[%clk 0:01:27]}  Kh7 {[%clk 0:01:30]} 30. R8a7 {[%clk 0:01:27]}  R8c7 {[%clk 0:01:30]} 31. g3 {[%clk 0:01:25]}  Kg6 {[%clk 0:01:27]} 32. R7a4 {[%clk 0:01:23]}  Bd6 {[%clk 0:01:26]} 33. Kh3 {[%clk 0:01:21]}  Rc2 {[%clk 0:01:26]} 34. f3 {[%clk 0:01:20]}  Rb2 {[%clk 0:01:24]} 35. R4a2 {[%clk 0:01:17]}  Rb3 {[%clk 0:01:23]} 36. Re1 {[%clk 0:01:17]}  Rcc3 {[%clk 0:01:22]} 37. Rae2 {[%clk 0:01:17]}  Rd3 {[%clk 0:01:22]} 38. g4 {[%clk 0:01:16]}  hxg4+ {[%clk 0:01:12]} 39. Kxg4 {[%clk 0:01:17]}  Bb4 {[%clk 0:01:13]} 40. Rg1 {[%clk 0:01:15]}  Kf6 {[%clk 0:01:08]} 41. e4 {[%clk 0:01:06]}  Rxf3 {[%clk 0:01:03]} 42. exd5 {[%clk 0:01:06]}  exd5 {[%clk 0:01:03]} 43. Re5 {[%clk 0:01:06]}  Bd6 {[%clk 0:00:57]} 44. Rxd5 {[%clk 0:01:06]}  Rf4+ {[%clk 0:00:55]} 45. Kh5 {[%clk 0:01:02]}  g6+ {[%clk 0:00:54]} 0-1


[Site "https://www.chess.com"]

[Event "Titled Tuesday Blitz July 18 Early 2023"]
[White "Basso, Pier Luigi"]
[Black "Sathish, Pranav"]
[WhiteFideId "866970"]
[BlackFideId "30967538"]
[WhiteElo "2700"]
[BlackElo "2449"]
[Result "1-0"]
[Round "2"]
[TimeControl "180+2"]
[Date "2023.07.18"]
[WhiteClock "0:00:17"]
[BlackClock "0:00:10"]
[Board "81"]

1. d4 {[%clk 0:03:00]}  d5 {[%clk 0:02:59]} 2. c4 {[%clk 0:03:01]}  c6 {[%clk 0:02:56]} 3. Nf3 {[%clk 0:03:01]}  Nf6 {[%clk 0:02:56]} 4. Nc3 {[%clk 0:03:01]}  dxc4 {[%clk 0:02:54]} 5. a4 {[%clk 0:03:01]}  Bf5 {[%clk 0:02:54]} 6. Ne5 {[%clk 0:03:00]}  Nbd7 {[%clk 0:02:51]} 7. Nxc4 {[%clk 0:03:00]}  Nb6 {[%clk 0:02:50]} 8. Ne5 {[%clk 0:03:00]}  a5 {[%clk 0:02:50]} 9. e3 {[%clk 0:03:00]}  e6 {[%clk 0:02:49]} 10. Bd3 {[%clk 0:03:00]}  Bxd3 {[%clk 0:02:48]} 11. Nxd3 {[%clk 0:03:01]}  Be7 {[%clk 0:02:46]} 12. O-O {[%clk 0:03:00]}  O-O {[%clk 0:02:45]} 13. Qb3 {[%clk 0:02:59]}  Nbd5 {[%clk 0:02:40]} 14. Bd2 {[%clk 0:02:35]}  Nb4 {[%clk 0:02:24]} 15. Ne5 {[%clk 0:02:13]}  Rb8 {[%clk 0:02:19]} 16. Rfd1 {[%clk 0:02:11]}  Qc7 {[%clk 0:02:16]} 17. Rac1 {[%clk 0:02:10]}  Bd6 {[%clk 0:02:15]} 18. Nb5 {[%clk 0:02:09]}  Qe7 {[%clk 0:02:12]} 19. Nxd6 {[%clk 0:02:08]}  Qxd6 {[%clk 0:02:12]} 20. Nc4 {[%clk 0:02:09]}  Qe7 {[%clk 0:02:12]} 21. Nxa5 {[%clk 0:02:08]}  Nbd5 {[%clk 0:02:12]} 22. Nc4 {[%clk 0:02:07]}  Ne4 {[%clk 0:02:10]} 23. Be1 {[%clk 0:02:07]}  Kh8 {[%clk 0:01:54]} 24. a5 {[%clk 0:02:06]}  f5 {[%clk 0:01:53]} 25. f3 {[%clk 0:01:58]}  Nef6 {[%clk 0:01:33]} 26. Qa3 {[%clk 0:01:45]}  Qf7 {[%clk 0:01:29]} 27. Ne5 {[%clk 0:01:36]}  Qh5 {[%clk 0:01:24]} 28. Bf2 {[%clk 0:01:30]}  g5 {[%clk 0:01:19]} 29. Qd6 {[%clk 0:01:10]}  g4 {[%clk 0:01:03]} 30. Re1 {[%clk 0:00:52]}  gxf3 {[%clk 0:00:58]} 31. gxf3 {[%clk 0:00:53]}  Rbd8 {[%clk 0:00:49]} 32. Qxe6 {[%clk 0:00:50]}  Rde8 {[%clk 0:00:49]} 33. Qd6 {[%clk 0:00:50]}  Rg8+ {[%clk 0:00:48]} 34. Bg3 {[%clk 0:00:48]}  Qh3 {[%clk 0:00:42]} 35. Nf7+ {[%clk 0:00:32]}  Kg7 {[%clk 0:00:40]} 36. Ng5 {[%clk 0:00:32]}  Qh5 {[%clk 0:00:39]} 37. Ne6+ {[%clk 0:00:27]}  Kh8 {[%clk 0:00:35]} 38. Kf2 {[%clk 0:00:21]}  Rg6 {[%clk 0:00:23]} 39. Nf4 {[%clk 0:00:19]}  Nxf4 {[%clk 0:00:17]} 40. exf4 {[%clk 0:00:20]}  Reg8 {[%clk 0:00:16]} 41. Re6 {[%clk 0:00:17]}  R6g7 {[%clk 0:00:12]} 42. Rxf6 {[%clk 0:00:17]}  Rxg3 {[%clk 0:00:12]} 43. hxg3 {[%clk 0:00:17]}  Qh2+ {[%clk 0:00:12]} 44. Ke3 {[%clk 0:00:18]}  Qxg3 {[%clk 0:00:11]} 45. Qe5 {[%clk 0:00:17]}  Qg7 {[%clk 0:00:10]} 46. Re6 {[%clk 0:00:17]} 1-0


[Site "https://www.chess.com"]

[Event "Titled Tuesday Blitz July 18 Early 2023"]
[White "Skuhala, Barbara"]
[Black "Alex_Sahakyan2006"]
[WhiteFideId "14605465"]
[WhiteElo "2432"]
[BlackElo "2695"]
[Result "0-1"]
[Round "2"]
[TimeControl "180+2"]
[Date "2023.07.18"]
[WhiteClock "0:00:43"]
[BlackClock "0:00:18"]
[Board "82"]

1. e4 {[%clk 0:02:30]}  e5 {[%clk 0:02:59]} 2. Nf3 {[%clk 0:02:27]}  Nc6 {[%clk 0:02:59]} 3. d4 {[%clk 0:02:26]}  exd4 {[%clk 0:02:59]} 4. Nxd4 {[%clk 0:02:24]}  Qh4 {[%clk 0:02:54]} 5. Nc3 {[%clk 0:02:23]}  Bb4 {[%clk 0:02:51]} 6. Nxc6 {[%clk 0:02:23]}  Qxe4+ {[%clk 0:02:48]} 7. Be2 {[%clk 0:02:22]}  Qxc6 {[%clk 0:02:45]} 8. O-O {[%clk 0:02:20]}  Ne7 {[%clk 0:02:43]} 9. Bf3 {[%clk 0:02:20]}  Qg6 {[%clk 0:02:28]} 10. Re1 {[%clk 0:02:17]}  O-O {[%clk 0:02:27]} 11. Be4 {[%clk 0:02:17]}  Qf6 {[%clk 0:02:26]} 12. Be3 {[%clk 0:02:17]}  Bxc3 {[%clk 0:02:17]} 13. bxc3 {[%clk 0:02:16]}  d5 {[%clk 0:02:16]} 14. Bd4 {[%clk 0:02:16]}  Qh4 {[%clk 0:02:13]} 15. g3 {[%clk 0:02:14]}  Qh6 {[%clk 0:02:08]} 16. Bxh7+ {[%clk 0:02:12]}  Qxh7 {[%clk 0:01:58]} 17. Rxe7 {[%clk 0:02:12]}  c6 {[%clk 0:01:59]} 18. Qe2 {[%clk 0:02:04]}  Bf5 {[%clk 0:01:57]} 19. Rxb7 {[%clk 0:02:04]}  Bxc2 {[%clk 0:01:57]} 20. Re1 {[%clk 0:02:00]}  Qg6 {[%clk 0:01:56]} 21. Bxa7 {[%clk 0:01:54]}  Rfe8 {[%clk 0:01:41]} 22. Re7 {[%clk 0:01:46]}  Rxe7 {[%clk 0:01:32]} 23. Qxe7 {[%clk 0:01:46]}  Be4 {[%clk 0:01:33]} 24. Bd4 {[%clk 0:01:33]}  Qg4 {[%clk 0:01:22]} 25. Qe5 {[%clk 0:01:27]}  f6 {[%clk 0:01:18]} 26. Qf4 {[%clk 0:01:26]}  Qxf4 {[%clk 0:01:01]} 27. gxf4 {[%clk 0:01:26]}  Rxa2 {[%clk 0:01:02]} 28. h4 {[%clk 0:01:23]}  Kf7 {[%clk 0:00:55]} 29. Kh2 {[%clk 0:01:23]}  Rc2 {[%clk 0:00:55]} 30. Ra1 {[%clk 0:01:15]}  Ke6 {[%clk 0:00:52]} 31. Ra6 {[%clk 0:01:14]}  Kf5 {[%clk 0:00:43]} 32. Rxc6 {[%clk 0:01:13]}  Rc1 {[%clk 0:00:32]} 33. Rc7 {[%clk 0:01:01]}  g6 {[%clk 0:00:19]} 34. f3 {[%clk 0:00:51]}  Bxf3 {[%clk 0:00:18]} 35. Rf7 {[%clk 0:00:43]}  Kg4 {[%clk 0:00:18]} 0-1


[Site "https://www.chess.com"]

[Event "Titled Tuesday Blitz July 18 Early 2023"]
[White "KorolDimitriy75"]
[Black "Dimitrov, Atanas"]
[BlackFideId "2901315"]
[WhiteElo "2415"]
[BlackElo "2678"]
[Result "0-1"]
[Round "2"]
[TimeControl "180+2"]
[Date "2023.07.18"]
[WhiteClock "0:00:00"]
[BlackClock "0:00:11"]
[Board "85"]

1. d4 {[%clk 0:03:00]}  Nf6 {[%clk 0:02:58]} 2. c4 {[%clk 0:03:01]}  g6 {[%clk 0:02:58]} 3. Nc3 {[%clk 0:03:02]}  d5 {[%clk 0:02:59]} 4. cxd5 {[%clk 0:03:02]}  Nxd5 {[%clk 0:03:00]} 5. e4 {[%clk 0:03:02]}  Nxc3 {[%clk 0:03:01]} 6. bxc3 {[%clk 0:03:03]}  Bg7 {[%clk 0:03:01]} 7. Nf3 {[%clk 0:03:04]}  O-O {[%clk 0:03:01]} 8. Rb1 {[%clk 0:03:04]}  c5 {[%clk 0:03:02]} 9. Be2 {[%clk 0:03:05]}  cxd4 {[%clk 0:02:58]} 10. cxd4 {[%clk 0:03:06]}  b6 {[%clk 0:02:59]} 11. O-O {[%clk 0:03:05]}  Bb7 {[%clk 0:02:58]} 12. Qd3 {[%clk 0:03:05]}  Nd7 {[%clk 0:02:58]} 13. Ba3 {[%clk 0:02:56]}  Rc8 {[%clk 0:02:30]} 14. Rbc1 {[%clk 0:02:40]}  Nf6 {[%clk 0:02:28]} 15. d5 {[%clk 0:02:39]}  Re8 {[%clk 0:02:25]} 16. Nd4 {[%clk 0:02:07]}  Qd7 {[%clk 0:02:10]} 17. h3 {[%clk 0:01:53]}  e6 {[%clk 0:01:54]} 18. Qe3 {[%clk 0:01:29]}  a6 {[%clk 0:01:20]} 19. dxe6 {[%clk 0:00:57]}  fxe6 {[%clk 0:01:20]} 20. Rcd1 {[%clk 0:00:38]}  Qa4 {[%clk 0:01:06]} 21. Bf3 {[%clk 0:00:14]}  Nd7 {[%clk 0:00:58]} 22. Bg4 {[%clk 0:00:09]}  Kh8 {[%clk 0:00:29]} 23. Nxe6 {[%clk 0:00:08]}  Bf6 {[%clk 0:00:25]} 24. Ng5 {[%clk 0:00:05]}  Bc6 {[%clk 0:00:21]} 25. Nf7+ {[%clk 0:00:04]}  Kg7 {[%clk 0:00:21]} 26. Nd6 {[%clk 0:00:05]}  Rcd8 {[%clk 0:00:16]} 27. Nxe8+ {[%clk 0:00:06]}  Rxe8 {[%clk 0:00:17]} 28. Rd3 {[%clk 0:00:04]}  Rxe4 {[%clk 0:00:16]} 29. Qd2 {[%clk 0:00:04]}  Ne5 {[%clk 0:00:15]} 30. Rb3 {[%clk 0:00:03]}  Nc4 {[%clk 0:00:14]} 31. Qc2 {[%clk 0:00:01]}  Nxa3 {[%clk 0:00:13]} 32. Qc1 {[%clk 0:00:01]}  Nc4 {[%clk 0:00:11]} 33. Bf3 {[%clk 0:00:00]}  Re6 {[%clk 0:00:11]} 0-1


[Site "https://www.chess.com"]

[Event "Titled Tuesday Blitz July 18 Early 2023"]
[White "Itgelt, Khuyagtsogt"]
[Black "Rian, Kapriaga"]
[WhiteFideId "4902912"]
[BlackFideId "7103263"]
[WhiteElo "2678"]
[BlackElo "2395"]
[Result "1-0"]
[Round "2"]
[TimeControl "180+2"]
[Date "2023.07.18"]
[WhiteClock "0:00:11"]
[BlackClock "0:00:06"]
[Board "86"]

1. d4 {[%clk 0:02:58]}  Nf6 {[%clk 0:02:58]} 2. c4 {[%clk 0:02:58]}  e6 {[%clk 0:02:57]} 3. Nf3 {[%clk 0:02:57]}  d5 {[%clk 0:02:56]} 4. g3 {[%clk 0:02:57]}  Bb4+ {[%clk 0:02:51]} 5. Bd2 {[%clk 0:02:56]}  a5 {[%clk 0:02:49]} 6. Bg2 {[%clk 0:02:55]}  dxc4 {[%clk 0:02:46]} 7. Qc2 {[%clk 0:02:55]}  b6 {[%clk 0:02:32]} 8. Bxb4 {[%clk 0:02:13]}  axb4 {[%clk 0:02:31]} 9. Qxc4 {[%clk 0:02:14]}  Qe7 {[%clk 0:02:16]} 10. Ne5 {[%clk 0:02:09]}  Ra7 {[%clk 0:02:13]} 11. Bc6+ {[%clk 0:02:04]}  Bd7 {[%clk 0:02:06]} 12. Nxd7 {[%clk 0:01:55]}  Nbxd7 {[%clk 0:01:53]} 13. O-O {[%clk 0:01:49]}  O-O {[%clk 0:01:52]} 14. Nd2 {[%clk 0:01:35]}  Nb8 {[%clk 0:01:40]} 15. Bg2 {[%clk 0:01:28]}  Rd8 {[%clk 0:01:23]} 16. Rfc1 {[%clk 0:01:22]}  c5 {[%clk 0:01:22]} 17. Nb3 {[%clk 0:01:20]}  Na6 {[%clk 0:01:11]} 18. dxc5 {[%clk 0:01:11]}  bxc5 {[%clk 0:01:10]} 19. Na5 {[%clk 0:01:08]}  Nb8 {[%clk 0:00:54]} 20. Nb3 {[%clk 0:00:49]}  Rc7 {[%clk 0:00:44]} 21. Rd1 {[%clk 0:00:40]}  Rxd1+ {[%clk 0:00:30]} 22. Rxd1 {[%clk 0:00:41]}  Nbd7 {[%clk 0:00:29]} 23. h3 {[%clk 0:00:32]}  h5 {[%clk 0:00:27]} 24. a4 {[%clk 0:00:28]}  bxa3 {[%clk 0:00:25]} 25. bxa3 {[%clk 0:00:29]}  Ra7 {[%clk 0:00:20]} 26. a4 {[%clk 0:00:18]}  Nb6 {[%clk 0:00:20]} 27. Qb5 {[%clk 0:00:18]}  Nxa4 {[%clk 0:00:17]} 28. Qb8+ {[%clk 0:00:19]}  Kh7 {[%clk 0:00:16]} 29. Rd8 {[%clk 0:00:19]}  c4 {[%clk 0:00:14]} 30. Rh8+ {[%clk 0:00:18]}  Kg6 {[%clk 0:00:15]} 31. Nd4 {[%clk 0:00:17]}  Rd7 {[%clk 0:00:12]} 32. Qb1+ {[%clk 0:00:12]}  Kg5 {[%clk 0:00:06]} 33. f4# {[%clk 0:00:11]} 1-0


[Site "https://www.chess.com"]

[Event "Titled Tuesday Blitz July 18 Early 2023"]
[White "Begmuratov, Alisher"]
[Black "Gutkin, Ilya"]
[WhiteFideId "14203367"]
[BlackFideId "16203470"]
[WhiteElo "2675"]
[BlackElo "2348"]
[Result "1-0"]
[Round "2"]
[TimeControl "180+2"]
[Date "2023.07.18"]
[WhiteClock "0:02:19"]
[BlackClock "0:01:41"]
[Board "90"]

1. Nf3 {[%clk 0:03:00]}  d5 {[%clk 0:02:59]} 2. b3 {[%clk 0:03:00]}  Nc6 {[%clk 0:02:55]} 3. Bb2 {[%clk 0:03:00]}  Bg4 {[%clk 0:02:55]} 4. d4 {[%clk 0:02:57]}  e6 {[%clk 0:02:48]} 5. e3 {[%clk 0:02:57]}  Nf6 {[%clk 0:02:48]} 6. Be2 {[%clk 0:02:56]}  Bd6 {[%clk 0:02:45]} 7. O-O {[%clk 0:02:56]}  O-O {[%clk 0:02:45]} 8. Nbd2 {[%clk 0:02:56]}  Ne4 {[%clk 0:02:44]} 9. c4 {[%clk 0:02:55]}  f5 {[%clk 0:02:42]} 10. Nxe4 {[%clk 0:02:40]}  fxe4 {[%clk 0:02:40]} 11. Ne5 {[%clk 0:02:40]}  Bxe2 {[%clk 0:02:35]} 12. Qxe2 {[%clk 0:02:41]}  Bxe5 {[%clk 0:02:32]} 13. dxe5 {[%clk 0:02:42]}  dxc4 {[%clk 0:02:30]} 14. Qxc4 {[%clk 0:02:35]}  Qd5 {[%clk 0:02:30]} 15. Qc2 {[%clk 0:02:33]}  Nxe5 {[%clk 0:02:26]} 16. Qxc7 {[%clk 0:02:28]}  Rf5 {[%clk 0:02:06]} 17. Rad1 {[%clk 0:02:20]}  Qc6 {[%clk 0:01:41]} 18. Bxe5 {[%clk 0:02:19]} 1-0


[Site "https://www.chess.com"]

[Event "Titled Tuesday Blitz July 18 Early 2023"]
[White "ExchangeAB"]
[Black "gau_npukyputb"]
[WhiteElo "2324"]
[BlackElo "2675"]
[Result "0-1"]
[Round "2"]
[TimeControl "180+2"]
[Date "2023.07.18"]
[WhiteClock "0:00:06"]
[BlackClock "0:01:47"]
[Board "91"]

1. d4 {[%clk 0:03:00]}  Nc6 {[%clk 0:03:00]} 2. Nf3 {[%clk 0:03:00]}  d5 {[%clk 0:03:00]} 3. Bf4 {[%clk 0:03:00]}  Bg4 {[%clk 0:02:59]} 4. e3 {[%clk 0:02:58]}  e6 {[%clk 0:03:00]} 5. Be2 {[%clk 0:02:46]}  Bd6 {[%clk 0:02:58]} 6. Bxd6 {[%clk 0:02:32]}  cxd6 {[%clk 0:02:59]} 7. h3 {[%clk 0:02:26]}  Bh5 {[%clk 0:02:59]} 8. O-O {[%clk 0:02:25]}  Nf6 {[%clk 0:02:59]} 9. c4 {[%clk 0:02:24]}  Bxf3 {[%clk 0:02:55]} 10. Bxf3 {[%clk 0:02:23]}  dxc4 {[%clk 0:02:56]} 11. d5 {[%clk 0:02:18]}  Ne5 {[%clk 0:02:51]} 12. dxe6 {[%clk 0:02:16]}  fxe6 {[%clk 0:02:52]} 13. Bxb7 {[%clk 0:01:25]}  Rb8 {[%clk 0:02:52]} 14. Qa4+ {[%clk 0:01:24]}  Qd7 {[%clk 0:02:51]} 15. Qxd7+ {[%clk 0:01:15]}  Kxd7 {[%clk 0:02:51]} 16. Bf3 {[%clk 0:01:16]}  Rxb2 {[%clk 0:02:50]} 17. Nc3 {[%clk 0:01:16]}  Rhb8 {[%clk 0:02:41]} 18. a4 {[%clk 0:01:07]}  Rc2 {[%clk 0:02:38]} 19. Nb5 {[%clk 0:01:08]}  a6 {[%clk 0:02:31]} 20. Nd4 {[%clk 0:01:07]}  Rd2 {[%clk 0:02:29]} 21. Rab1 {[%clk 0:01:04]}  Rbb2 {[%clk 0:02:29]} 22. Rxb2 {[%clk 0:01:04]}  Rxb2 {[%clk 0:02:30]} 23. Rc1 {[%clk 0:01:02]}  d5 {[%clk 0:02:30]} 24. Be2 {[%clk 0:00:57]}  Nc6 {[%clk 0:02:17]} 25. Nxc6 {[%clk 0:00:49]}  Kxc6 {[%clk 0:02:18]} 26. Bd1 {[%clk 0:00:45]}  Kc5 {[%clk 0:02:15]} 27. Bc2 {[%clk 0:00:37]}  e5 {[%clk 0:02:14]} 28. g4 {[%clk 0:00:32]}  h6 {[%clk 0:02:14]} 29. Bg6 {[%clk 0:00:30]}  d4 {[%clk 0:02:12]} 30. Kf1 {[%clk 0:00:29]}  Nd5 {[%clk 0:02:08]} 31. Bd3 {[%clk 0:00:23]}  c3 {[%clk 0:02:02]} 32. Bxa6 {[%clk 0:00:18]}  Nb4 {[%clk 0:01:57]} 33. Bb5 {[%clk 0:00:11]}  c2 {[%clk 0:01:57]} 34. exd4+ {[%clk 0:00:11]}  exd4 {[%clk 0:01:57]} 35. Ke1 {[%clk 0:00:12]}  Na2 {[%clk 0:01:49]} 36. Kd2 {[%clk 0:00:10]}  Nxc1 {[%clk 0:01:49]} 37. Kxc1 {[%clk 0:00:11]}  Ra2 {[%clk 0:01:49]} 38. Bd3 {[%clk 0:00:12]}  Rxa4 {[%clk 0:01:47]} 39. Bxc2 {[%clk 0:00:12]}  Ra1+ {[%clk 0:01:46]} 40. Kd2 {[%clk 0:00:06]}  Rh1 {[%clk 0:01:47]} 0-1


[Site "https://www.chess.com"]

[Event "Titled Tuesday Blitz July 18 Early 2023"]
[White "Nagare Kaivalya Sandip"]
[Black "Da Matta, Eduardo Cesar"]
[WhiteFideId "25957929"]
[BlackFideId "2193108"]
[WhiteElo "2668"]
[BlackElo "2318"]
[Result "1-0"]
[Round "2"]
[TimeControl "180+2"]
[Date "2023.07.18"]
[WhiteClock "0:00:21"]
[BlackClock "0:00:00"]
[Board "93"]

1. e4 {[%clk 0:03:00]}  c5 {[%clk 0:02:59]} 2. Nf3 {[%clk 0:03:01]}  d6 {[%clk 0:02:59]} 3. d4 {[%clk 0:03:01]}  cxd4 {[%clk 0:03:00]} 4. Nxd4 {[%clk 0:03:02]}  Nf6 {[%clk 0:03:01]} 5. Nc3 {[%clk 0:03:02]}  Nc6 {[%clk 0:03:02]} 6. Bg5 {[%clk 0:03:02]}  e6 {[%clk 0:03:01]} 7. Qd2 {[%clk 0:03:02]}  a6 {[%clk 0:03:02]} 8. O-O-O {[%clk 0:03:03]}  Bd7 {[%clk 0:03:02]} 9. Kb1 {[%clk 0:03:03]}  Be7 {[%clk 0:03:02]} 10. f3 {[%clk 0:03:02]}  Nxd4 {[%clk 0:03:02]} 11. Qxd4 {[%clk 0:03:02]}  h5 {[%clk 0:03:01]} 12. Qd2 {[%clk 0:02:27]}  b5 {[%clk 0:03:01]} 13. h4 {[%clk 0:02:25]}  b4 {[%clk 0:03:01]} 14. Ne2 {[%clk 0:02:25]}  a5 {[%clk 0:03:00]} 15. Nd4 {[%clk 0:02:24]}  a4 {[%clk 0:03:01]} 16. Nb5 {[%clk 0:02:20]}  Bxb5 {[%clk 0:02:33]} 17. Bxb5+ {[%clk 0:02:21]}  Kf8 {[%clk 0:02:34]} 18. e5 {[%clk 0:01:58]}  dxe5 {[%clk 0:02:30]} 19. Qxd8+ {[%clk 0:01:57]}  Rxd8 {[%clk 0:02:29]} 20. Rxd8+ {[%clk 0:01:55]}  Bxd8 {[%clk 0:02:30]} 21. Bxa4 {[%clk 0:01:55]}  Be7 {[%clk 0:02:20]} 22. Rd1 {[%clk 0:01:51]}  Nd5 {[%clk 0:02:20]} 23. Bb3 {[%clk 0:01:48]}  Bxg5 {[%clk 0:02:16]} 24. hxg5 {[%clk 0:01:46]}  Ke7 {[%clk 0:02:11]} 25. Bxd5 {[%clk 0:01:43]}  Rd8 {[%clk 0:02:09]} 26. f4 {[%clk 0:01:40]}  exd5 {[%clk 0:02:07]} 27. fxe5 {[%clk 0:01:40]}  Ke6 {[%clk 0:02:07]} 28. Rf1 {[%clk 0:01:32]}  Rd7 {[%clk 0:01:59]} 29. a4 {[%clk 0:01:32]}  bxa3 {[%clk 0:01:58]} 30. bxa3 {[%clk 0:01:32]}  Kxe5 {[%clk 0:01:57]} 31. Kb2 {[%clk 0:01:32]}  Ke4 {[%clk 0:01:47]} 32. a4 {[%clk 0:01:32]}  Rb7+ {[%clk 0:01:38]} 33. Kc3 {[%clk 0:01:31]}  d4+ {[%clk 0:01:38]} 34. Kd2 {[%clk 0:01:29]}  Ra7 {[%clk 0:01:32]} 35. g3 {[%clk 0:01:17]}  Ke5 {[%clk 0:01:17]} 36. Ra1 {[%clk 0:01:14]}  Kf5 {[%clk 0:01:14]} 37. Kd3 {[%clk 0:01:13]}  Kxg5 {[%clk 0:01:01]} 38. Kxd4 {[%clk 0:01:13]}  Kg4 {[%clk 0:01:00]} 39. c4 {[%clk 0:01:13]}  Kxg3 {[%clk 0:00:59]} 40. Kc5 {[%clk 0:00:56]}  h4 {[%clk 0:00:57]} 41. Kb6 {[%clk 0:00:57]}  Ra8 {[%clk 0:00:56]} 42. c5 {[%clk 0:00:56]}  h3 {[%clk 0:00:56]} 43. a5 {[%clk 0:00:46]}  h2 {[%clk 0:00:51]} 44. a6 {[%clk 0:00:45]}  g5 {[%clk 0:00:38]} 45. Kb7 {[%clk 0:00:37]}  Rh8 {[%clk 0:00:35]} 46. c6 {[%clk 0:00:33]}  h1=Q {[%clk 0:00:32]} 47. Rxh1 {[%clk 0:00:31]}  Rxh1 {[%clk 0:00:33]} 48. c7 {[%clk 0:00:28]}  Rb1+ {[%clk 0:00:32]} 49. Kc6 {[%clk 0:00:27]}  Rc1+ {[%clk 0:00:32]} 50. Kd7 {[%clk 0:00:25]}  Rd1+ {[%clk 0:00:20]} 51. Ke8 {[%clk 0:00:24]}  Re1+ {[%clk 0:00:10]} 52. Kf8 {[%clk 0:00:21]}  Rc1 {[%clk 0:00:02]} 53. a7 {[%clk 0:00:21]}  Rxc7 {[%clk 0:00:00]} 54. a8=Q {[%clk 0:00:21]} 1-0


[Site "https://www.chess.com"]